[Event "FAI-ch Master 2021"]
[Site "Klaksvik"]
[Date "2021.03.29"]
[Round "3.1"]
[White "Nielsen, Hogni Egilstoft"]
[Black "Berg, Margar M."]
[Result "1-0"]
[ECO "B08"]
[WhiteElo "2384"]
[BlackElo "1942"]
[Annotator "RC"]
[PlyCount "67"]
[EventDate "2021.03.27"]
[EventType "tourn"]
[EventCountry "FAI"]
[SourceTitle "playchess.com"]
[Source "ChessBase"]
[SourceQuality "1"]
[TimeControl "40/5400+30:900+30"]

1. e4 {[%emt 0:00:00]} g6 {[%emt 0:08:42]} 2. d4 {[%emt 0:00:00]} d6 {[%emt 0:00:37]} 3. Nf3 {[%emt 0:01:28]} Nf6 {[%emt 0:04:31]} 4. Nc3 {[%emt 0:00:09]} Bg7 {[%emt 0:02:10]} 5. h3 {[%emt 0:00:08]} O-O {[%emt 0:00:51]} 6. Be3 {[%emt 0:01:04]} b6 {[%emt 0:17:15]} 7. Bd3 {[%emt 0:06:10]} Bb7 {[%emt 0:04:11]} 8. O-O {[%emt 0:01:06]} Nbd7 {[%emt 0:02:31]} 9. Nd2 {[%emt 0:04:40]} c5 {[%emt 0:02:05]} 10. d5 {[%emt 0:00:25]} Ne5 {[%emt 0:05:47]} 11. Be2 {[%emt 0:03:45]} a6 {[%emt 0:04:37]} 12. a4 {[%emt 0:01:34]} e6 {[%emt 0:03:30]} 13. f4 {[%emt 0:07:56]} Ned7 {[%emt 0:01:03]} 14. Bf3 {[%emt 0:00:12]} exd5 {[%emt 0:01:24]} 15. exd5 {[%emt 0:00:11]} Re8 {[%emt 0:01:51]} 16. Bf2 {[%emt 0:04:49]} Qc7 {[%emt 0:11:24]} 17. Nc4 {[%emt 0:02:05]} Re7 {[%emt 0:06:32]} 18. Qd3 {[%emt 0:05:37]} Rae8 {[%emt 0:03:36]} 19. Bg3 {[%emt 0:04:20]} Bc8 {[%emt 0:08:58]} 20. Bh2 {[%emt 0:09:31]} Qb8 {[%emt 0:00:59]} 21. Kh1 {[%emt 0:09:20]} b5 {[%emt 0:00:36]} 22. axb5 {[%emt 0:00:10]} axb5 {[%emt 0:00:07]} 23. Na5 {[%emt 0:00:06]} c4 {[%emt 0:00:44]} 24. Qd1 {[%emt 0:03:13]} Bb7 {[%emt 0:02:56]} 25. Nc6 {[%emt 0:05:07]} Bxc6 {[%emt 0:00:09]} 26. dxc6 {[%emt 0:00:02]} Nc5 {[%emt 0:00:31]} 27. f5 {[%emt 0:00:18]} Nce4 {[%emt 0:02:46]} 28. Nxe4 {[%emt 0:01:46]} Nxe4 {[%emt 0:00:07]} 29. f6 {[%emt 0:00:08]} Bxf6 {[%emt 0:01:45]} 30. Bxe4 {[%emt 0:00:07]} Rxe4 {[%emt 0:00:08]} 31. Rxf6 {[%emt 0:00:28]} Qb6 {[%emt 0:02:35]} 32. Qd5 {[%emt 0:03:20]} Re1+ {[%emt 0:00:30]} 33. Rf1 {[%emt 0:00:07]} Qf2 {[%emt 0:00:31]} 34. Raxe1 {[%emt 0:00:27]} 1-0

[Event "FAI-ch Master 2021"]
[Site "Klaksvik"]
[Date "2021.03.30"]
[Round "4.2"]
[White "Poulsen, Martin"]
[Black "Apol, Luitjen Akselsson"]
[Result "1-0"]
[ECO "A00"]
[WhiteElo "2285"]
[BlackElo "2103"]
[Annotator "ChessBase"]
[PlyCount "53"]
[EventDate "2021.03.27"]
[EventType "tourn"]
[EventCountry "FAI"]
[SourceTitle "playchess.com"]
[Source "ChessBase"]
[SourceQuality "1"]
[TimeControl "40/5400+30:900+30"]

1. g3 {[%emt 0:08:13]} g6 {[%emt 0:00:23]} 2. Bg2 {[%emt 0:00:09]} Bg7 {[%emt 0:00:28]} 3. c4 {[%emt 0:00:24]} d6 {[%emt 0:00:36]} 4. d4 {[%emt 0:03:56]} Nf6 {[%emt 0:00:33]} 5. Nc3 {[%emt 0:00:06]} O-O {[%emt 0:00:35]} 6. e3 {[%emt 0:00:07]} Nbd7 {[%emt 0:00:52]} 7. Nge2 {[%emt 0:00:15]} e5 {[%emt 0:00:27]} 8. O-O {[%emt 0:00:45]} Re8 {[%emt 0:00:45]} 9. b3 {[%emt 0:01:41]} e4 {[%emt 0:02:54]} 10. Qc2 {[%emt 0:02:38]} Qe7 {[%emt 0:00:36]} 11. g4 {[%emt 0:01:04]} Nxg4 {[%emt 0:10:33]} 12. Qxe4 {[%emt 0:01:33]} Qh4 {[%emt 0:11:29]} 13. Qxe8+ {[%emt 0:02:04]} Nf8 {[%emt 0:14:14]} 14. h3 {[%emt 0:02:00]} Nf6 {[%emt 0:00:50]} 15. Qd8 {[%emt 0:12:03]} Bxh3 {[%emt 0:04:58]} 16. Qxa8 {[%emt 0:02:53]} Bxg2 {[%emt 0:18:00]} 17. Kxg2 {[%emt 0:01:44]} Ng4 {[%emt 0:01:06]} 18. Ng3 {[%emt 0:02:29]} Qh2+ {[%emt 0:01:58]} 19. Kf3 {[%emt 0:00:07]} h5 {[%emt 0:00:17]} 20. Nd1 {[%emt 0:06:15]} Qh4 {[%emt 0:06:32]} 21. Rh1 {[%emt 0:06:12]} Qf6+ {[%emt 0:00:27]} 22. Ke2 {[%emt 0:02:27]} d5 {[%emt 0:04:04]} 23. Qxb7 {[%emt 0:06:23]} h4 {[%emt 0:03:21]} 24. Ne4 {[%emt 0:05:04]} dxe4 {[%emt 0:00:50]} 25. Qxe4 {[%emt 0:00:21]} Nh6 {[%emt 0:00:43]} 26. Rxh4 {[%emt 0:02:34]} Nf5 {[%emt 0:00:34]} 27. Rg4 {[%emt 0:04:53]} 1-0

[Event "FAI-ch Master 2021"]
[Site "Klaksvik"]
[Date "2021.03.30"]
[Round "4.3"]
[White "Hojgaard, Samson"]
[Black "Johansen, Haldur Suni"]
[Result "1/2-1/2"]
[ECO "A35"]
[WhiteElo "1999"]
[BlackElo "1997"]
[Annotator "ChessBase"]
[PlyCount "53"]
[EventDate "2021.03.27"]
[EventType "tourn"]
[EventCountry "FAI"]
[SourceTitle "playchess.com"]
[Source "ChessBase"]
[SourceQuality "1"]
[TimeControl "40/5400+30:900+30"]

1. Nf3 {[%emt 0:17:57]} Nf6 {[%emt 0:00:00]} 2. c4 {[%emt 0:00:15]} c5 {[%emt 0:00:55]} 3. Nc3 {[%emt 0:01:46]} Nc6 {[%emt 0:00:47]} 4. e3 {[%emt 0:01:08]} d6 {[%emt 0:13:10]} 5. Be2 {[%emt 0:03:38]} g6 {[%emt 0:00:39]} 6. O-O {[%emt 0:00:15]} Bg7 {[%emt 0:00:04]} 7. b3 {[%emt 0:00:24]} O-O {[%emt 0:00:21]} 8. Bb2 {[%emt 0:00:30]} a6 {[%emt 0:01:02]} 9. h3 {[%emt 0:02:43]} Rb8 {[%emt 0:01:44]} 10. Rc1 {[%emt 0:04:21]} Ne4 {[%emt 0:07:42]} 11. Qc2 {[%emt 0:17:23]} Nxc3 {[%emt 0:05:12]} 12. Bxc3 {[%emt 0:00:08]} e5 {[%emt 0:00:18]} 13. Rfd1 {[%emt 0:05:50]} Qe7 {[%emt 0:11:24]} 14. d4 {[%emt 0:11:00]} Re8 {[%emt 0:12:20]} 15. dxc5 {[%emt 0:01:25]} dxc5 {[%emt 0:00:08]} 16. Nd2 {[%emt 0:01:16]} f5 {[%emt 0:02:12]} 17. Nb1 {[%emt 0:01:58]} Be6 {[%emt 0:00:57]} 18. Rd2 {[%emt 0:00:40]} Red8 {[%emt 0:01:52]} 19. Rcd1 {[%emt 0:00:30]} Rxd2 {[%emt 0:00:30]} 20. Rxd2 {[%emt 0:01:10]} Rd8 {[%emt 0:06:31]} 21. Kf1 {[%emt 0:01:24]} Rxd2 {[%emt 0:06:27]} 22. Qxd2 {[%emt 0:00:13]} Qd7 {[%emt 0:01:10]} 23. Ke1 {[%emt 0:02:07]} Qxd2+ {[%emt 0:01:29]} 24. Bxd2 {[%emt 0:01:16]} Kf7 {[%emt 0:05:00]} 25. Kd1 {[%emt 0:00:47]} Ke7 {[%emt 0:00:06]} 26. Bc3 {[%emt 0:01:07]} Bf6 {[%emt 0:01:13]} 27. Kd2 {[%emt 0:06:06]} 1/2-1/2

[Event "FAI-ch Master 2021"]
[Site "Klaksvik"]
[Date "2021.04.01"]
[Round "6.3"]
[White "Nielsen, Hogni Egilstoft"]
[Black "Apol, Luitjen Akselsson"]
[Result "1-0"]
[ECO "B20"]
[WhiteElo "2384"]
[BlackElo "2103"]
[Annotator "RC"]
[PlyCount "75"]
[EventDate "2021.03.27"]
[EventType "tourn"]
[EventCountry "FAI"]
[SourceTitle "playchess.com"]
[Source "ChessBase"]
[SourceQuality "1"]
[TimeControl "40/5400+30:900+30"]

1. e4 {[%emt 0:00:35]} c5 {[%emt 0:00:00]} 2. a3 {[%emt 0:00:14]} e5 {[%emt 0:09:20]} 3. Bc4 {[%emt 0:03:17]} Nc6 {[%emt 0:01:39]} 4. d3 {[%emt 0:01:31]} g6 {[%emt 0:04:51]} 5. Nc3 {[%emt 0:01:21]} Bg7 {[%emt 0:04:14]} 6. Nge2 {[%emt 0:08:34]} Nge7 {[%emt 0:05:21]} 7. O-O {[%emt 0:12:59]} d6 {[%emt 0:03:09]} 8. b4 {[%emt 0:06:10]} cxb4 {[%emt 0:07:05]} 9. axb4 {[%emt 0:00:23]} Be6 {[%emt 0:00:52]} 10. b5 {[%emt 0:05:34]} Nd4 {[%emt 0:03:29]} 11. Bg5 {[%emt 0:05:09]} h6 {[%emt 0:17:22]} 12. Bxe7 {[%emt 0:10:17]} Qxe7 {[%emt 0:03:13]} 13. Nxd4 {[%emt 0:06:40]} exd4 {[%emt 0:00:14]} 14. Nd5 {[%emt 0:00:06]} Bxd5 {[%emt 0:01:28]} 15. Bxd5 {[%emt 0:00:09]} O-O {[%emt 0:03:57]} 16. Ra2 {[%emt 0:06:27]} Qc7 {[%emt 0:01:53]} 17. Qg4 {[%emt 0:03:47]} Kh7 {[%emt 0:01:08]} 18. Rfa1 {[%emt 0:00:19]} h5 {[%emt 0:01:20]} 19. Qg5 {[%emt 0:02:50]} Bh6 {[%emt 0:02:11]} 20. Qf6 {[%emt 0:01:47]} Bg7 {[%emt 0:00:40]} 21. Qh4 {[%emt 0:00:02]} Bh6 {[%emt 0:02:33]} 22. g3 {[%emt 0:00:53]} Kg7 {[%emt 0:01:31]} 23. Qh3 {[%emt 0:06:16]} Bd2 {[%emt 0:02:48]} 24. Rxa7 {[%emt 0:06:18]} Rxa7 25. Rxa7 {[%emt 0:00:03]} Qxc2 {[%emt 0:01:37]} 26. Rxb7 {[%emt 0:02:19]} Qd1+ {[%emt 0:04:20]} 27. Kg2 {[%emt 0:04:14]} h4 {[%emt 0:01:19]} 28. Qe6 {[%emt 0:02:41]} Kh6 {[%emt 0:01:02]} 29. Rxf7 {[%emt 0:00:53]} Rxf7 {[%emt 0:00:09]} 30. Qxf7 {[%emt 0:00:11]} h3+ {[%emt 0:00:04]} 31. Kxh3 {[%emt 0:00:15]} Kh5 {[%emt 0:01:18]} 32. e5 {[%emt 0:01:08]} Qf1+ {[%emt 0:00:46]} 33. Bg2 {[%emt 0:00:09]} Qxd3 {[%emt 0:00:08]} 34. e6 {[%emt 0:01:55]} Qxb5 {[%emt 0:00:57]} 35. Bf3+ {[%emt 0:01:18]} Kg5 {[%emt 0:00:33]} 36. Kg2 {[%emt 0:00:24]} Qc4 {[%emt 0:01:40]} 37. Qf8 {[%emt 0:00:30]} Qxe6 {[%emt 0:01:29]} 38. h4# {[%emt 0:00:09]} 1-0

[Event "FAI-ch Master 2021"]
[Site "Klaksvik"]
[Date "2021.04.02"]
[Round "7.1"]
[White "Johansen, Haldur Suni"]
[Black "Berg, Margar M."]
[Result "0-1"]
[ECO "B96"]
[WhiteElo "1997"]
[BlackElo "1942"]
[Annotator "NA"]
[PlyCount "80"]
[EventDate "2021.03.27"]
[EventType "tourn"]
[EventCountry "FAI"]
[SourceTitle "playchess.com"]
[Source "ChessBase"]
[SourceQuality "1"]
[TimeControl "40/5400+30:900+30"]

1. e4 {[%emt 0:00:00]} c5 {[%emt 0:09:21]} 2. Nf3 {[%emt 0:00:00]} d6 {[%emt 0:00:09]} 3. d4 {[%emt 0:00:00]} cxd4 {[%emt 0:00:10]} 4. Nxd4 {[%emt 0:00:04]} Nf6 {[%emt 0:00:13]} 5. Nc3 {[%emt 0:00:02]} a6 {[%emt 0:00:13]} 6. Bg5 {[%emt 0:00:19]} e6 {[%emt 0:01:38]} 7. f4 {[%emt 0:00:21]} Nbd7 {[%emt 0:00:56]} 8. Qf3 {[%emt 0:00:25]} Qc7 {[%emt 0:01:22]} 9. O-O-O {[%emt 0:00:37]} b5 {[%emt 0:03:05]} 10. f5 {[%emt 0:09:25]} Ne5 {[%emt 0:06:26]} 11. Qg3 {[%emt 0:09:05]} b4 {[%emt 0:03:01]} 12. Bxf6 {[%emt 0:02:54]} gxf6 {[%emt 0:09:00]} 13. Nce2 {[%emt 0:15:04]} Bb7 {[%emt 0:24:05]} 14. fxe6 {[%emt 0:06:20]} Bxe4 {[%emt 0:13:23]} 15. exf7+ {[%emt 0:03:55]} Kxf7 {[%emt 0:04:59]} 16. Qb3+ {[%emt 0:01:22]} Ke8 {[%emt 0:06:42]} 17. Ng3 {[%emt 0:04:56]} Bg6 {[%emt 0:01:40]} 18. Qxb4 {[%emt 0:04:42]} Rb8 {[%emt 0:04:24]} 19. Qa4+ {[%emt 0:03:42]} Kf7 {[%emt 0:00:31]} 20. Ngf5 {[%emt 0:02:21]} d5 {[%emt 0:05:50]} 21. Qxa6 {[%emt 0:05:43]} Rb6 {[%emt 0:00:39]} 22. Qa8 {[%emt 0:08:50]} Bxf5 {[%emt 0:01:00]} 23. Nxf5 {[%emt 0:00:41]} Kg6 {[%emt 0:00:09]} 24. Ne3 {[%emt 0:10:09]} Bh6 {[%emt 0:01:26]} 25. Qxh8 {[%emt 0:02:12]} Bxe3+ {[%emt 0:00:55]} 26. Kb1 {[%emt 0:00:02]} Rb8 {[%emt 0:00:16]} 27. Bd3+ {[%emt 0:01:13]} Nxd3 {[%emt 0:00:44]} 28. Qxb8 {[%emt 0:00:25]} Qxb8 {[%emt 0:00:07]} 29. Rxd3 {[%emt 0:00:05]} d4 {[%emt 0:00:29]} 30. g3 {[%emt 0:00:46]} Qb7 {[%emt 0:00:16]} 31. Rhd1 {[%emt 0:00:23]} Qg2 {[%emt 0:00:42]} 32. c4 {[%emt 0:00:26]} Qxh2 {[%emt 0:00:51]} 33. a4 {[%emt 0:00:24]} Qxg3 {[%emt 0:00:08]} 34. b4 {[%emt 0:01:29]} Qc7 {[%emt 0:00:26]} 35. c5 {[%emt 0:00:10]} f5 {[%emt 0:00:18]} 36. Kb2 {[%emt 0:00:15]} f4 {[%emt 0:00:12]} 37. Kb3 {[%emt 0:00:23]} Qf7+ {[%emt 0:00:35]} 38. Ka3 {[%emt 0:00:05]} f3 {[%emt 0:00:17]} 39. b5 {[%emt 0:00:11]} f2 {[%emt 0:00:10]} 40. Rf1 {[%emt 0:00:00]} Qc4 {[%emt 0:00:00]} 0-1

[Event "FAI-ch Master 2021"]
[Site "Klaksvik"]
[Date "2021.04.02"]
[Round "7.2"]
[White "Apol, Luitjen Akselsson"]
[Black "Nolsoe, Rani"]
[Result "1/2-1/2"]
[ECO "C41"]
[WhiteElo "2103"]
[BlackElo "2068"]
[Annotator "NA"]
[PlyCount "89"]
[EventDate "2021.03.27"]
[EventType "tourn"]
[EventCountry "FAI"]
[SourceTitle "playchess.com"]
[Source "ChessBase"]
[SourceQuality "1"]
[TimeControl "40/5400+30:900+30"]

1. e4 {[%emt 0:00:01]} e5 {[%emt 0:00:00]} 2. Nf3 {[%emt 0:00:35]} d6 {[%emt 0:00:00]} 3. d4 {[%emt 0:00:26]} exd4 {[%emt 0:00:00]} 4. Nxd4 {[%emt 0:00:57]} Nf6 {[%emt 0:00:40]} 5. Nc3 {[%emt 0:00:32]} Be7 {[%emt 0:00:12]} 6. g3 {[%emt 0:00:25]} O-O {[%emt 0:00:22]} 7. Bg2 {[%emt 0:02:53]} Re8 {[%emt 0:00:11]} 8. O-O {[%emt 0:00:30]} Bf8 {[%emt 0:00:14]} 9. h3 {[%emt 0:00:34]} Nbd7 {[%emt 0:00:37]} 10. Re1 {[%emt 0:01:43]} Nc5 {[%emt 0:01:27]} 11. Bf4 {[%emt 0:08:21]} a5 {[%emt 0:03:35]} 12. a4 {[%emt 0:05:09]} Nfd7 {[%emt 0:08:28]} 13. b3 {[%emt 0:08:57]} Ne5 {[%emt 0:03:30]} 14. Qd2 {[%emt 0:07:22]} Ne6 {[%emt 0:09:22]} 15. Be3 {[%emt 0:05:59]} Nxd4 {[%emt 0:15:38]} 16. Bxd4 {[%emt 0:00:12]} Nc6 {[%emt 0:02:00]} 17. Be3 {[%emt 0:02:11]} Nb4 18. Nb5 {[%emt 0:08:11]} Nc6 {[%emt 0:08:43]} 19. Rad1 {[%emt 0:03:37]} Be6 {[%emt 0:01:47]} 20. Kh2 {[%emt 0:04:02]} Be7 {[%emt 0:03:09]} 21. f4 {[%emt 0:01:50]} Bf6 {[%emt 0:06:31]} 22. Qf2 {[%emt 0:01:28]} Qc8 {[%emt 0:02:17]} 23. Bc1 {[%emt 0:05:31]} Bd7 {[%emt 0:05:21]} 24. Ba3 {[%emt 0:04:24]} Nb4 {[%emt 0:01:29]} 25. Nd4 {[%emt 0:01:11]} Nc6 {[%emt 0:02:56]} 26. Ne2 {[%emt 0:05:28]} g6 {[%emt 0:01:49]} 27. Qf3 {[%emt 0:03:46]} Bg7 {[%emt 0:01:04]} 28. Rd2 {[%emt 0:01:32]} f5 {[%emt 0:01:32]} 29. Nc3 {[%emt 0:01:34]} fxe4 {[%emt 0:01:30]} 30. Rxe4 {[%emt 0:01:20]} Rxe4 {[%emt 0:03:16]} 31. Nxe4 {[%emt 0:01:25]} Qf8 {[%emt 0:01:47]} 32. Qd3 {[%emt 0:03:12]} Qf5 {[%emt 0:03:10]} 33. Rf2 {[%emt 0:05:22]} h5 {[%emt 0:04:06]} 34. g4 {[%emt 0:02:16]} hxg4 {[%emt 0:00:43]} 35. hxg4 {[%emt 0:00:01]} Qxg4 {[%emt 0:00:32]} 36. Ng5 {[%emt 0:00:09]} Qh5+ {[%emt 0:05:18]} 37. Kg1 {[%emt 0:00:27]} Bd4 {[%emt 0:00:41]} 38. Kf1 {[%emt 0:01:10]} Re8 {[%emt 0:01:09]} 39. Be4 {[%emt 0:04:10]} Bf5 {[%emt 0:01:00]} 40. Qc4+ {[%emt 0:00:00]} d5 {[%emt 0:00:00]} 41. Bxd5+ {[%emt 0:04:57]} Kg7 {[%emt 0:05:04]} 42. Bxc6 {[%emt 0:04:45]} Qd1+ {[%emt 0:02:32]} 43. Kg2 {[%emt 0:00:02]} Qg4+ {[%emt 0:00:22]} 44. Kf1 {[%emt 0:00:08]} Qd1+ {[%emt 0:00:20]} 45. Kg2 1/2-1/2

[Event "FAI-ch Master 2021"]
[Site "Klaksvik"]
[Date "2021.04.02"]
[Round "7.3"]
[White "Simonsen, Hans Kristian"]
[Black "Nielsen, Hogni Egilstoft"]
[Result "0-1"]
[ECO "D37"]
[WhiteElo "2128"]
[BlackElo "2384"]
[Annotator "ChessBase"]
[PlyCount "98"]
[EventDate "2021.03.27"]
[EventType "tourn"]
[EventCountry "FAI"]
[SourceTitle "playchess.com"]
[Source "ChessBase"]
[SourceQuality "1"]
[TimeControl "40/5400+30:900+30"]

1. c4 {[%emt 0:00:00]} Nf6 {[%emt 0:00:38]} 2. Nf3 {[%emt 0:00:00]} e6 {[%emt 0:00:17]} 3. Nc3 {[%emt 0:00:00]} d5 {[%emt 0:00:35]} 4. d4 {[%emt 0:00:03]} Be7 {[%emt 0:00:31]} 5. Bf4 {[%emt 0:01:08]} O-O {[%emt 0:00:59]} 6. e3 {[%emt 0:00:05]} c6 {[%emt 0:00:59]} 7. Qc2 {[%emt 0:05:31]} Nbd7 {[%emt 0:03:28]} 8. a3 {[%emt 0:06:58]} Re8 {[%emt 0:07:06]} 9. h3 {[%emt 0:01:24]} Nf8 {[%emt 0:06:22]} 10. Bd3 {[%emt 0:03:46]} Ng6 {[%emt 0:07:44]} 11. Bg3 {[%emt 0:04:47]} Bd6 {[%emt 0:11:15]} 12. Bxd6 {[%emt 0:01:31]} Qxd6 {[%emt 0:00:07]} 13. Bxg6 {[%emt 0:00:29]} hxg6 {[%emt 0:00:23]} 14. e4 {[%emt 0:00:11]} dxe4 {[%emt 0:08:28]} 15. Nxe4 {[%emt 0:01:36]} Qf4 {[%emt 0:00:04]} 16. Ng3 {[%emt 0:12:02]} c5 {[%emt 0:13:33]} 17. dxc5 {[%emt 0:03:31]} Bd7 {[%emt 0:01:52]} 18. O-O {[%emt 0:04:06]} Bc6 {[%emt 0:06:08]} 19. Qc1 {[%emt 0:04:24]} e5 {[%emt 0:01:08]} 20. Ng5 {[%emt 0:03:00]} Rad8 {[%emt 0:02:08]} 21. Qe3 {[%emt 0:10:46]} Rd2 {[%emt 0:03:54]} 22. Rfe1 {[%emt 0:03:32]} Rxb2 {[%emt 0:03:39]} 23. Rac1 {[%emt 0:15:35]} Rd8 {[%emt 0:05:36]} 24. Qxf4 {[%emt 0:02:07]} exf4 {[%emt 0:00:02]} 25. Nf1 {[%emt 0:00:12]} Kf8 {[%emt 0:02:36]} 26. Rc3 {[%emt 0:02:45]} a5 {[%emt 0:02:01]} 27. h4 {[%emt 0:03:58]} a4 {[%emt 0:01:34]} 28. Rec1 {[%emt 0:01:47]} Ne4 {[%emt 0:03:23]} 29. Nxe4 {[%emt 0:01:18]} Bxe4 {[%emt 0:00:02]} 30. f3 {[%emt 0:03:30]} Bf5 {[%emt 0:03:08]} 31. c6 {[%emt 0:00:57]} bxc6 {[%emt 0:00:11]} 32. c5 {[%emt 0:00:17]} Be6 {[%emt 0:01:22]} 33. Re1 {[%emt 0:03:45]} Ra2 {[%emt 0:01:51]} 34. Rcc1 {[%emt 0:01:23]} Rb8 {[%emt 0:01:14]} 35. Re4 {[%emt 0:00:32]} Rxa3 {[%emt 0:02:08]} 36. Rxf4 {[%emt 0:00:17]} Rb2 {[%emt 0:00:08]} 37. Re1 {[%emt 0:00:09]} Kg8 {[%emt 0:00:41]} 38. Rd4 {[%emt 0:00:24]} Rc2 {[%emt 0:00:52]} 39. Rb1 {[%emt 0:00:26]} Rb3 {[%emt 0:00:45]} 40. Ra1 {[%emt 0:00:00]} Rbb2 {[%emt 0:00:00]} 41. Ne3 {[%emt 0:00:12]} Re2 {[%emt 0:03:57]} 42. Ra3 {[%emt 0:01:53]} Rb3 {[%emt 0:04:45]} 43. Rd3 {[%emt 0:00:01]} Rxa3 {[%emt 0:01:41]} 44. Rxa3 {[%emt 0:00:02]} Bb3 {[%emt 0:00:08]} 45. Ng4 {[%emt 0:01:29]} Ra2 {[%emt 0:01:15]} 46. Rxa2 {[%emt 0:00:24]} Bxa2 {[%emt 0:00:02]} 47. Ne5 {[%emt 0:01:38]} Bd5 {[%emt 0:00:08]} 48. Nd3 {[%emt 0:00:09]} a3 {[%emt 0:00:19]} 49. Nb4 {[%emt 0:00:13]} Bb3 {[%emt 0:00:08]} 0-1

[Event "FAI-ch Master 2021"]
[Site "Klaksvik"]
[Date "2021.04.02"]
[Round "7.4"]
[White "Poulsen, Martin"]
[Black "Hojgaard, Samson"]
[Result "1-0"]
[ECO "B02"]
[WhiteElo "2285"]
[BlackElo "1999"]
[Annotator "ChessBase"]
[PlyCount "65"]
[EventDate "2021.03.27"]
[EventType "tourn"]
[EventCountry "FAI"]
[SourceTitle "playchess.com"]
[Source "ChessBase"]
[SourceQuality "1"]
[TimeControl "40/5400+30:900+30"]

1. e4 {[%emt 0:08:08]} Nf6 {[%emt 0:01:47]} 2. Nc3 {[%emt 0:02:12]} d5 {[%emt 0:00:07]} 3. e5 {[%emt 0:04:21]} Ne4 {[%emt 0:00:02]} 4. Nce2 {[%emt 0:00:06]} f6 {[%emt 0:00:06]} 5. d3 {[%emt 0:00:05]} Ng5 {[%emt 0:00:01]} 6. Bxg5 {[%emt 0:00:06]} fxg5 {[%emt 0:00:01]} 7. h4 {[%emt 0:00:07]} g4 {[%emt 0:00:10]} 8. d4 {[%emt 0:00:19]} c5 {[%emt 0:00:02]} 9. dxc5 {[%emt 0:00:10]} Nc6 {[%emt 0:01:08]} 10. Nd4 {[%emt 0:02:29]} Qa5+ {[%emt 0:00:53]} 11. c3 {[%emt 0:00:08]} Qxc5 {[%emt 0:00:13]} 12. Bb5 {[%emt 0:00:24]} a6 {[%emt 0:02:25]} 13. Bxc6+ {[%emt 0:20:25]} bxc6 {[%emt 0:00:08]} 14. Nge2 {[%emt 0:00:06]} g6 {[%emt 0:04:59]} 15. h5 {[%emt 0:03:28]} Bg7 {[%emt 0:12:37]} 16. hxg6 {[%emt 0:12:25]} Bxe5 {[%emt 0:01:10]} 17. gxh7 {[%emt 0:06:27]} Qb6 {[%emt 0:04:08]} 18. Qd3 {[%emt 0:13:12]} c5 {[%emt 0:00:23]} 19. Nb3 {[%emt 0:02:22]} Qd6 {[%emt 0:15:43]} 20. Qe3 {[%emt 0:10:56]} Rb8 {[%emt 0:14:18]} 21. Nxc5 {[%emt 0:04:47]} Rxb2 {[%emt 0:00:24]} 22. Nd3 {[%emt 0:02:53]} Rxe2+ {[%emt 0:00:21]} 23. Kxe2 {[%emt 0:00:44]} Bxc3 {[%emt 0:00:53]} 24. Rac1 {[%emt 0:01:58]} d4 {[%emt 0:00:08]} 25. Qe5 {[%emt 0:01:25]} Qxe5+ {[%emt 0:03:03]} 26. Nxe5 {[%emt 0:00:02]} Bf5 {[%emt 0:00:11]} 27. Rh5 {[%emt 0:01:33]} e6 {[%emt 0:15:35]} 28. Rch1 {[%emt 0:00:41]} Be4 {[%emt 0:00:56]} 29. Rg5 {[%emt 0:01:13]} Bxh7 {[%emt 0:09:06]} 30. Rgh5 {[%emt 0:00:42]} d3+ {[%emt 0:00:13]} 31. Nxd3 {[%emt 0:00:12]} Bxd3+ {[%emt 0:00:49]} 32. Kxd3 {[%emt 0:00:07]} Rxh5 {[%emt 0:00:05]} 33. Rxh5 {[%emt 0:00:06]} 1-0